Cogmind - Beta 17.1 @@@ ROGUE MODE // 2026.09.15 @ 23:16:27 Player: shreknel Result: Destroyed by G-47 Trooper with Particle Gun Performance ------------- Evolutions (2) 1000 Regions Visited (4) 800 Robots Destroyed (5) 25 Value Destroyed (108) 108 Prototype IDs (0) 0 Alien Tech Used (0) 0 Bonus (14) 14 TOTAL SCORE: 1947 Bonus ------- Follower Combat Kills 14 Cogmind --------- Core Integrity 0/550 Matter 249/300 Energy 100/100 System Corruption 0% Temperature Cool (27) Movement Core (50) Location -8/Materials Parts ------- > --- POWER (1) -------- (None) > --- PROPULSION (3) --- (None) > --- UTILITY (4) ------ (None) > --- WEAPON (3) ------- (None) > --- INVENTORY (5) ---- Light Treads Wheel Compact Wheel Coolant Injector Medium Storage Unit Peak State ------------ > --- POWER ------------ (None) > --- PROPULSION ------- Aluminum Leg Improved Titanium Leg > --- UTILITY ---------- Coolant Injector Medium Storage Unit > --- WEAPON ----------- (None) > --- INVENTORY -------- Light Treads Wheel Compact Wheel [Rating: 10] Favorites ----------- Power Ion Engine Engine Ion Engine Propulsion Wheel Leg Improved Titanium Leg Wheel Wheel Utility Small Storage Unit Device Heat Sink Storage Small Storage Unit Processor Signal Interpreter Weapon Small Laser Energy Gun Small Laser Ballistic Gun Assault Rifle Launcher EMP Blaster Build | -11 -10 -9 -9 -8 ------- Run | Yrd Mat Mat Min Mat Slots Evolved 4 | . . 2 . 2 Power . | . . . . . Propulsion 1 | . . 1 . . Utility 2 | . . 1 . 1 Weapon 1 | . . . . 1 Parts Attached 22 | 6 7 7 2 . Power 3 | 1 1 1 . . Engine 3 | 1 1 1 . . Core . | . . . . . Reactor . | . . . . . Propulsion 6 | 2 2 1 1 . Treads . | . . . . . Leg 2 | . . 1 1 . Wheel 4 | 2 2 . . . Hover . | . . . . . Flight . | . . . . . Utility 7 | 1 2 3 1 . Device 3 | . 1 1 1 . Storage 3 | 1 1 1 . . Processor 1 | . . 1 . . Hackware . | . . . . . Protection . | . . . . . Artifact . | . . . . . Weapon 6 | 2 2 2 . . Energy Gun 3 | 1 1 1 . . Energy Cannon . | . . . . . Ballistic Gun 2 | 1 1 . . . Ballistic Cannon . | . . . . . Launcher 1 | . . 1 . . Special Weapon . | . . . . . Impact Weapon . | . . . . . Slashing Weapon . | . . . . . Piercing Weapon . | . . . . . Special Melee Weapon . | . . . . . Unidentified Prototypes . | . . . . . Parts Lost 6 | . . 5 . 1 Power 1 | . . 1 . . Propulsion 3 | . . 2 . 1 Utility . | . . . . . Weapon 2 | . . 2 . . Highest Loss Streak 5 | . . 5 . 1 To Critical Strikes . | . . . . . Average Backups 6 | 3 8 7 5 5 Power . | . 1 . . . Propulsion 4 | 2 5 5 4 3 Utility . | . . . 1 1 Weapon . | . 1 . . . Tool/Special . | . . . . . Unused Backups 5 | . 1 2 . 2 Power . | . . . . . Propulsion 5 | . 1 2 . 2 Utility . | . . . . . Weapon . | . . . . . Tool/Special . | . . . . . Average Slot Usage (%) 62 | . 88 67 7 11 Engine 8 | . 14 7 . . Leg 2 | . . . 6 7 Wheel 18 | . 28 20 . . Device 4 | . 3 8 1 3 Storage 9 | . 14 8 . . Processor 1 | . . 6 . . Energy Gun 8 | . 14 7 . . Ballistic Gun 8 | . 14 7 . . Peak Build Rating 10 | 6 7 9 8 10 Average Rating 5 | 4 6 6 2 3 On Entrance 4 | . 6 7 . 8 Avg Prop Armor Cover (%) . | . . . . . Naked Turns 101 | . . 31 39 31 Heaviest Build 27 | 12 17 27 1 1 Greatest Support 30 | 26 26 30 20 20 Greatest Overweight (x) 1 | . . 1 . . Average Overweight (x) . | . . . . . Largest Inventory Capacity 10 | 8 10 10 5 10 Average Capacity 7 | 7 8 8 5 5 Most Carried 9 | 6 9 9 5 5 Average Carried 6 | 3 8 7 5 4 Final Capacity 10 | 8 10 5 5 5 Final Carried 9 | 6 9 5 5 5 Class Distribution -------------------- 100% | Mutant Dominant Class ---------------- Mutant | -10/Materials Mutant | -9/Materials Mutant | -9/Mines Mutant | -8/Materials Resources | -11 -10 -9 -9 -8 ----------- Run | Yrd Mat Mat Min Mat Matter Collected 355 | 238 117 . . . Remotely . | . . . . . Salvage Created 146 | . 146 . . . Parts 10 | . 10 . . . Haulers Intercepted . | . . . . . Recyclers Shooed . | . . . . . Parts Field Recycled . | . . . . . Retrieved Matter . | . . . . . Parts Self-Destructed . | . . . . . Prevented . | . . . . . Parts Restored . | . . . . . Kills | -11 -10 -9 -9 -8 ------- Run | Yrd Mat Mat Min Mat Combat Hostiles Destroyed 5 | . 5 . . . Guns 5 | . 5 . . . Classes Destroyed 2 | . 2 . . . Swarmer 3 | . 3 . . . Grunt 2 | . 2 . . . Best Kill Streak 3 | . 3 . . . Combat Bots Only 3 | . 3 . . . Max Kills in Single Turn 1 | . 1 . . . Gunslinging . | . . . . . Exploded . | . . . . . Melee . | . . . . . Uniques/NPCs Destroyed . | . . . . . Combat | -11 -10 -9 -9 -8 -------- Run | Yrd Mat Mat Min Mat Hostile Shots Fired 127 | . 16 54 9 48 Missed 36 | . 5 15 4 12 Hits 91 | . 11 39 5 36 Melee 17 | . . 14 . 3 Projectile 74 | . 11 25 5 33 Critical Strikes 6 | . . 3 . 3 Damage Taken 1573 | . 101 759 48 665 Core 963 | . 21 332 48 562 Absorbed by Shields . | . . . . . Core Remaining (%) 65 | 100 91 . 5 . Volleys Fired 32 | . 15 17 . . Largest 2 | . 2 2 . . Hottest 60 | . 60 60 . . Shots Fired 58 | . 30 28 . . Gun 56 | . 30 26 . . Cannon . | . . . . . Launcher 2 | . . 2 . . Special . | . . . . . Kinetic 26 | . 15 11 . . Thermal 30 | . 15 15 . . Explosive . | . . . . . Electromagnetic 2 | . . 2 . . Robot Hit Streak 7 | . 4 7 . . Robot Miss Streak 4 | . 3 4 . . Penetration Max . | . . . . . Secondary Targets . | . . . . . Shots Hit Robots 35 | . 16 19 . . Core Hits 13 | . 8 2 . 3 Critical Kills . | . . . . . Critical Parts Destroyed . | . . . . . Critical Strikes . | . . . . . Melee Attacks . | . . . . . Impact . | . . . . . Slashing . | . . . . . Piercing . | . . . . . Sneak Attacks . | . . . . . Combat Hostiles . | . . . . . Follow-up Attacks . | . . . . . Damage Inflicted 492 | . 177 270 . 45 Guns 380 | . 177 203 . . Cannons . | . . . . . Explosions 43 | . . 43 . . Melee . | . . . . . Ramming 69 | . . 24 . 45 Kinetic 148 | . 68 80 . . Thermal 232 | . 109 123 . . Explosive . | . . . . . Electromagnetic 43 | . . 43 . . Impact . | . . . . . Slashing . | . . . . . Piercing . | . . . . . Highest Corruption . | . . . . . Average Corruption . | . . . . . Corruption Purged . | . . . . . Corruption Blocked . | . . . . . Overload Shots . | . . . . . Overflow Damage . | . . . . . Projectiles . | . . . . . Explosions . | . . . . . Melee . | . . . . . Knockbacks 1 | . . . . 1 Impact 1 | . . . . 1 Kinetic . | . . . . . Secondary . | . . . . . Self-Inflicted Damage 61 | . . 44 . 17 Shots 2 | . . 2 . . Rammed 21 | . . 5 . 16 Targets Rammed 26 | . . 5 . 21 Kicked 5 | . . . . 5 Crushed . | . . . . . Highest Temperature 40 | . 40 . . . Average Temperature 16 | . 16 . . . Received Heat Transfer 447 | . 24 90 . 333 Siege Activations . | . . . . . Martial Activations . | . . . . . Shielding Activations . | . . . . . Robots Disrupted . | . . . . . Combat Hostiles . | . . . . . Robots Corrupted . | . . . . . Combat Hostiles . | . . . . . Parts Fried . | . . . . . Impact Corruptions . | . . . . . Robots Melted . | . . . . . Combat Hostiles . | . . . . . Parts Melted . | . . . . . Heat Transferred 561 | . 250 311 . . Parts Sabotaged . | . . . . . Parts Stolen . | . . . . . Parts Stripped . | . . . . . Power Chain Reactions . | . . . . . Alert | -11 -10 -9 -9 -8 ------- Run | Yrd Mat Mat Min Mat Maximum Alert Level . | . . . . . Low Security (%) 100 | 100 100 100 100 100 Level 1 . | . . . . . Level 2 . | . . . . . Level 3 . | . . . . . Level 4 . | . . . . . Level 5 . | . . . . . High Security . | . . . . . Max Security . | . . . . . Peak Influence 74 | . 70 15 74 18 Initial 16 | . . . 5 16 Average 14 | . 18 1 45 4 Influence Increases 251 | . 135 15 99 2 Destroy 0b10 Robot/C 140 | . 100 . 40 . Destroy Leader 30 | . 20 . 10 . Allied During Kill 4 | . . . 4 . Successful Hack 2 | . . . . 2 Disable Machine 15 | . . 15 . . Lose Combat Pursuer 60 | . 15 . 45 . Influence Decreases 251 | . 133 2 70 46 Entered New Map 40 | . . 2 10 28 Time Decay 183 | . 133 . 40 10 Lost Ally 28 | . . . 20 8 Squads Dispatched 5 | . 1 1 . 3 Investigation . | . . . . . Extermination . | . . . . . Reinforcement 5 | . 1 1 . 3 Assault . | . . . . . Garrison . | . . . . . Intercept . | . . . . . Searches Triggered . | . . . . . Construction Impeded . | . . . . . Haulers Reinforced . | . . . . . Active Scanning Responses . | . . . . . Cargo Convoy Interrupts . | . . . . . Stealth | -11 -10 -9 -9 -8 --------- Run | Yrd Mat Mat Min Mat Distress Signals 2 | . 1 1 . . Communications Jammed . | . . . . . Distress Signals . | . . . . . Times Spotted 32 | . 12 9 3 8 Peak Tracking Total 8 | . 4 8 3 8 Tactical Retreats 3 | . 1 . 2 . Traps | -11 -10 -9 -9 -8 ------- Run | Yrd Mat Mat Min Mat Traps Triggered 1 | . . . 1 . Indirectly . | . . . . . Trap Hack Attempts . | . . . . . Triggered . | . . . . . Disarmed . | . . . . . Reprogrammed . | . . . . . Reused . | . . . . . Traps Extracted . | . . . . . Installed . | . . . . . Triggered . | . . . . . Machines | -11 -10 -9 -9 -8 ---------- Run | Yrd Mat Mat Min Mat Machines Disabled 1 | . . 1 . . Max in Single Turn 1 | . . 1 . . Machines Repaired . | . . . . . Machines Dismantled . | . . . . . Machines Sabotaged . | . . . . . Overloaded Fab Kills . | . . . . . Hacking | -11 -10 -9 -9 -8 --------- Run | Yrd Mat Mat Min Mat Machines Accessed 8 | . 5 . 1 2 Terminals 4 | . 3 . . 1 Fabricators . | . . . . . Repair Stations 1 | . 1 . . . Recycling Units 1 | . 1 . . . Scanalyzers 1 | . . . . 1 Garrison Access . | . . . . . Total Hacks 17 | . 10 . 1 6 Successful 11 | . 5 . 1 5 Failed 5 | . 5 . . . Catastrophic 1 | . 1 . . . Database Lockouts 1 | . . . . 1 Manual . | . . . . . Terminals 8 | . 7 . . 1 Fabricators . | . . . . . Repair Stations 1 | . 1 . . . Recycling Units 2 | . 2 . . . Scanalyzers 5 | . . . . 5 Garrison Access . | . . . . . Terminal Hacks 4 | . 2 . 1 1 Record 1 | . . . . 1 Open Door 1 | . . . 1 . Locate Traps 1 | . 1 . . . Zone Layout 1 | . 1 . . . Fabricator Hacks . | . . . . . Repair Station Hacks 1 | . 1 . . . Scan Component 1 | . 1 . . . Recycling Unit Hacks 2 | . 2 . . . Report Inventory 2 | . 2 . . . Scanalyzer 4 | . . . . 4 Insert Component 2 | . . . . 2 Analyze 1 | . . . . 1 Retrieve Study 1 | . . . . 1 Garrison Access Hacks . | . . . . . Unauthorized Hacks . | . . . . . Terminals . | . . . . . Fabricators . | . . . . . Repair Stations . | . . . . . Recycling Units . | . . . . . Scanalyzers . | . . . . . Garrison Access . | . . . . . Data Cores Recovered . | . . . . . Used . | . . . . . Hacking Detections 4 | . 3 . . 1 Full Trace Events . | . . . . . Feedback Events . | . . . . . Feedback Blocked . | . . . . . Robot Schematics Acquired . | . . . . . Robots Built . | . . . . . Authchips . | . . . . . Time . | . . . . . Total Robot Build Rating . | . . . . . Part Schematics Acquired 1 | . . . . 1 Parts Built . | . . . . . Authchips . | . . . . . Time . | . . . . . Total Part Build Rating . | . . . . . Part Studies Acquired 1 | . . . . 1 Parts Repaired . | . . . . . Time . | . . . . . Parts Recycled . | . . . . . Recycled Matter . | . . . . . Retrieved Matter . | . . . . . Retrieved Components . | . . . . . Parts Scanalyzed 1 | . . . . 1 Part Schematics Acquired 1 | . . . . 1 Parts Damaged . | . . . . . Bothacking | -11 -10 -9 -9 -8 ------------ Run | Yrd Mat Mat Min Mat Used RIF Installer . | . . . . . Robots Hacked . | . . . . . Non-combat . | . . . . . Combat . | . . . . . Robot Hacks Applied . | . . . . . Relay Couplers Released . | . . . . . Fabnet Peak Effective % . | . . . . . Robots Rewired . | . . . . . Allies Hacked . | . . . . . Hacks Repelled . | . . . . . Allies | -11 -10 -9 -9 -8 -------- Run | Yrd Mat Mat Min Mat Total Allies 2 | . . . 2 . Largest Group 2 | . . . 2 1 Highest-Rated Group 49 | . . . 49 31 Highest-Rated Ally 31 | . . . 31 31 Total Orders . | . . . . . Ally Attacks 9 | . . . 5 4 Total Damage 84 | . . . 62 22 Kills 2 | . . . 2 . Allies Corrupted . | . . . . . Allies Melted . | . . . . . Intel | -11 -10 -9 -9 -8 ------- Run | Yrd Mat Mat Min Mat Active Infowar (turns) 9 | . . 9 . . Sensors 9 | . . 9 . . Robot Analysis Total . | . . . . . Derelict Logs Recovered 1 | . . . 1 . Drone Launches . | . . . . . Drone Recoveries . | . . . . . Exploration | -11 -10 -9 -9 -8 ------------- Run | Yrd Mat Mat Min Mat Turns Passed 840 | 68 415 156 87 114 Spaces Moved 705 | 63 322 133 102 85 Core 177 | 13 . 63 72 29 Treads . | . . . . . Legs 86 | . . . 30 56 Wheels 442 | 50 322 70 . . Hover . | . . . . . Flight . | . . . . . Fastest Speed 50 | 50 80 50 50 50 Average Speed 78 | 80 80 65 73 93 Slowest Speed 130 | 90 90 95 130 130 Overloaded Moves . | . . . . . Propulsion Burnouts . | . . . . . Robots Hopped 2 | . . . 2 . Potential Cave-ins . | . . . . . Cave-ins Triggered . | . . . . . Exploration Rate (%) 19 | 3 40 17 26 13 Regions Visited 4 Branch Regions 1 Pre-discovered Areas 1 | . . . 1 . Known Exits Taken . | . . . . . Unknown Exits Taken 4 | 1 1 1 1 . Scrap Searched . | . . . . . Spaces Dug . | . . . . . Terrain Destroyed . | . . . . . Melee . | . . . . . Projectile . | . . . . . AOE . | . . . . . Terrain Rammed . | . . . . . Walls Destroyed . | . . . . . Machines Disabled . | . . . . . Actions | -11 -10 -9 -9 -8 --------- Run | Yrd Mat Mat Min Mat Total 932 | 78 451 172 111 120 Wait 123 | 1 97 5 10 10 Move 697 | 62 321 132 97 85 Hop 2 | . . . 2 . Pick Up 16 | 9 4 3 . . Fast Attach 8 | 3 1 2 2 . Attach 10 | 3 . 5 . 2 Detach 3 | . . 1 . 2 Swap 7 | . 6 1 . . Drop 8 | . 7 1 . . Fire 32 | . 15 17 . . Melee . | . . . . . Ram 21 | . . 5 . 16 Kick 5 | . . . . 5 Crush . | . . . . . Escape Stasis . | . . . . . Rewire . | . . . . . Trap . | . . . . . Miscellaneous . | . . . . . Route ------- -11/Scrapyard -10/Materials -9/Materials -9/Mines -8/Materials History --------- Turn | Location | Event 19 | -11/Scrapyard | Discovered new exit (range 15) 69 | -11/Scrapyard | Entered Materials 228 | -10/Materials | Discovered new exit (range 15) 313 | -10/Materials | Build established: Mutant 484 | -10/Materials | Entered another Materials area 484 | -9/Materials | Evolved 2 slots: Propulsion x1, Utility x1 593 | -9/Materials | Released all parts (6) 617 | -9/Materials | Lost 5 parts (1p2n2w) 627 | -9/Materials | Core integrity fell below 50% 628 | -9/Materials | Released all parts (1) 637 | -9/Materials | Core integrity fell below 20% 638 | -9/Materials | Discovered new exit (range 6) 640 | -9/Materials | Entered Mines 658 | -9/Mines | Learned location of Zion (-7) 673 | -9/Mines | Discovered new exit (range 5) 678 | -9/Mines | Met a Derelict who couldn't figure out how to use a Trap Extractor 727 | -9/Mines | Entered Materials 727 | -8/Materials | Accompanied by 1 ally 727 | -8/Materials | Evolved 2 slots: Utility x1, Weapon x1 732 | -8/Materials | Led the pair of lost Derelicts to an unsafe place 744 | -8/Materials | Central database locked down 833 | -8/Materials | Core integrity fell below 50% 837 | -8/Materials | Core integrity fell below 20% 841 | -8/Materials | Destroyed by G-47 Trooper with Particle Gun Last Messages --------------- Chamber. 00778_ O-16 Technician uses terminal to summon reinforcements. 00778_ ALERT: Hostiles spotted, dispatching reinforcements to Terminal M010. 00778_ O-16 Technician locks terminal. 00780_ Critical hit (Burn: +37). 00804_ ALERT: Hostiles spotted, dispatching reinforcements to Terminal M003. 00808_ K-01 Serf cleans the Fusion Modulator. 00810_ Aluminum Leg+ destroyed. 00811_ K-01 Serf collects debris. 00815_ ALERT: Hostiles spotted, dispatching reinforcements to Terminal M005. 00824_ K-01 Serf collects debris. 00825_ Slammed into G-47 Trooper. 00839_ G-47 Trooper knocked back. 00840_ Slammed into G-47 Trooper. 00841_ K-01 Serf collects debris. 00841_ Critical hit (Burn: +37). Map ----- +----------------------------------------------------+ | | | | | | | | | | | | | | | | | | | | | | | | | | | ?????????????????????????????????????????????????? | | ??????????###########????????????????????????????? | | ??????????# #?????########???????????????? | | ??????????# #?????# #???????????????? | | ??????????# """ """ ####### """ #???????????????? | | ??????????# """ """ + + """ #???????????????? | | ??????????# """ """ ##### # """ #???????????????? | | ??????????# #???# # #???????????????? | | ??????????# #???# # #???????????????? | | ??????????# ! ! #???# #################??????? | | ?????+ #######+######### #?????# #??????? | | ?????# "T" ### lgg#?????# ! "" #??????? | | ?????# gg g @#?????# """ #####??? | | ?????# ##/#####?# !" S" # ##?? | | ?????# # #?# # T#?? | | ?????# = """ # #?# # ##?? | | ?????+ """ # #?# + #??? | | ?????# """ # #?# =#= #??? | | ?????# ######## /k #?###########%! #??? | | ?????# ???????# # #??# # #??? | | ?????# ????????+ ###+####??# """ # #??? | | ?????+?????????# ]!! ###### """ # #??? | | ???????????????# !!! + """ # #??? | | ???????????????# !! ########### + #??? | | ???????????????# #?????????# # #??? | | ???????????????# #?????????# !! # #??? | | ???????????????# T?????????# !! # #??? | | ???????????????# #?????????# !! # #??? | | ???????????????# #?????????########## #??? | | ???????????????# ???????????????????# #??? | | ???????????????# ???????????????????# #??? | | ???????????????? ? ???????????????????? ??? | | ????????????????????" ???????????????????? ??? | | ??????????????????????????????????????????? ??? | | ???????????????????????????????????????????#+###?? | | ?????????????????????????????????????????????????? | | ?????????????????????????????????????????????????? | +----------------------------------------------------+ Best States ------------- Heat Dissipation 38 Coolant Potential 65 Energy Generation 10 Energy Capacity 250 Matter Stores 300 Matter Capacity 300 Sight Range 16 Robot Scan Range 14 Terrain Scan Density 10 Evasion (%) 55 Item Schematics ----------------- Aluminum Leg | -8/Materials | Scanalyzed Robot Schematics ------------------ None Fabricated ------------ Nothing Repaired ---------- Nothing Studied --------- Aluminum Leg | -8/Materials | Hacked Alien Tech Used ----------------- None Achievements -------------- None Challenges ------------ None Game ------ Seed EfficiencyQuantumGreatsword Manual? 0 Play Time 00:33:06 Cumulative 42.8 hours Start 2026.09.15 @ 21:36:03 End 2026.09.15 @ 23:16:27 Sessions 3 Manual Loads 0 Difficulty Rogue Special Mode None Game No. 32 Rogue 32 Adventurer 0 Explorer 0 Win Type - Total 0 Types 0/0/0/0/0/0/0/0/0/0 Lore% 13 Gallery% 21 Achievement% 18 Wizard Run 0 Options --------- Layout 1 ASCII 0 Keyboard 1 Movement Numpad Keybinds 0 Fullscreen 1 Font 16/Terminus Map View 50x40 Zoom Use 0% Tactical HUD 1 Map Filters NONE Filters NONE Steam SD RUN: a07e3e96-5a41-49b8-b8fe-22fc3fee2aea